Cogmind - Beta 12 @@@ ROGUE MODE // 2023.11.11 @ 17:31:15 Player: javashane Result: Self-destructed Performance ------------- Evolutions (4) 2000 Regions Visited (10) 2000 Robots Destroyed (78) 390 Value Destroyed (2155) 2155 Prototype IDs (9) 180 Alien Tech Used (0) 0 Bonus (332) 332 TOTAL SCORE: 7057 Bonus ------- High Alert Combat Kills 28 Follower Combat Kills 70 Entered DSFs 500 Friendly Fire -266 Cogmind --------- Core Integrity 570/850 Matter 245/300 Energy 12/100 System Corruption 5% Temperature Cool (0) Movement Treading (152) Location -6/DSF Parts ------- > --- POWER (2) -------- (None) > --- PROPULSION (4) --- Advanced Treads Advanced Treads Improved Medium Treads Improved Medium Treads > --- UTILITY (5) ------ Improved Melee Analysis Suite > --- WEAPON (4) ------- (None) > --- INVENTORY (5) ---- Improved Medium Treads Improved Medium Treads Cryofiber Web Cryofiber Web Component Analysis Suite Peak State ------------ > --- POWER ------------ Ion Engine Micro Nuclear Core > --- PROPULSION ------- Advanced Treads Advanced Treads Advanced Treads Advanced Treads > --- UTILITY ---------- Improved Heat Sink Cooling System Medium Storage Unit Advanced Terrain Scanner Improved Melee Analysis Suite > --- WEAPON ----------- Lightning Gun High-powered Field Laser Advanced Beam Cannon Makeshift Spear > --- INVENTORY -------- Advanced Treads Advanced Treads Cryofiber Web Cryofiber Web Transmission Jammer Component Analysis Suite [Rating: 50] Favorites ----------- Power Cooled Ion Engine Engine Cooled Ion Engine Power Core Micro Nuclear Core Propulsion Light Treads Treads Light Treads Leg Aluminum Leg Wheel Wheel Hover Unit Hover Unit Flight Unit Improved Flight Unit Utility Medium Storage Unit Device Cooling System Storage Medium Storage Unit Processor Improved Melee Analysis Suite Protection Hardened Light Armor Plating Weapon Advanced Beam Cannon Energy Gun High-powered Field Laser Energy Cannon Advanced Beam Cannon Ballistic Gun Heavy Assault Rifle Launcher Grenade Launcher Slashing Weapon Greatsword Piercing Weapon Makeshift Spear Special Melee Weapon Datajack Build | -11 -10 -10 -9 -9 -8 -7 -7 -7 -6 -6 ------- Run | Jun Mat Min Mat Sto Mat Fac Low Low Fac DSF Slots Evolved 8 | . . . 2 . 2 2 . . 2 . Power 1 | . . . . . . . . . 1 . Propulsion 2 | . . . 1 . . . . . 1 . Utility 3 | . . . 1 . 1 1 . . . . Weapon 2 | . . . . . 1 1 . . . . Parts Attached 97 | 1 4 . 9 30 9 14 17 . 1 12 Power 8 | . . . . 4 . 1 2 . . 1 Engine 7 | . . . . 4 . 1 1 . . 1 Core 1 | . . . . . . . 1 . . . Reactor . | . . . . . . . . . . . Propulsion 33 | . . . 6 7 1 3 6 . . 10 Treads 21 | . . . . 5 1 3 2 . . 10 Leg 4 | . . . . . . . 4 . . . Wheel 4 | . . . 3 1 . . . . . . Hover 3 | . . . 3 . . . . . . . Flight 1 | . . . . 1 . . . . . . Utility 23 | 1 3 . 3 5 6 2 2 . 1 . Device 11 | 1 . . 2 . 3 2 2 . 1 . Storage 4 | . 3 . . 1 . . . . . . Processor 2 | . . . . 1 1 . . . . . Hackware . | . . . . . . . . . . . Protection 6 | . . . 1 3 2 . . . . . Artifact . | . . . . . . . . . . . Weapon 33 | . 1 . . 14 2 8 7 . . 1 Energy Gun 9 | . . . . 1 . 4 3 . . 1 Energy Cannon 9 | . . . . 5 1 1 2 . . . Ballistic Gun 4 | . . . . 4 . . . . . . Ballistic Cannon . | . . . . . . . . . . . Launcher 7 | . 1 . . 2 . 3 1 . . . Special Weapon . | . . . . . . . . . . . Impact Weapon . | . . . . . . . . . . . Slashing Weapon 1 | . . . . . 1 . . . . . Piercing Weapon 1 | . . . . . . . 1 . . . Special Melee Weapon 2 | . . . . 2 . . . . . . Unidentified Prototypes 9 | . . . 1 6 . 2 . . . . Parts Lost 43 | . . . 4 7 4 1 12 . . 15 Power 5 | . . . . . . 1 2 . . 2 Propulsion 16 | . . . 2 4 1 . 5 . . 4 Utility 10 | . . . 2 . 3 . 1 . . 4 Weapon 12 | . . . . 3 . . 4 . . 5 Highest Loss Streak 14 | . . . 4 3 1 1 8 . . 14 To Critical Strikes 1 | . . . . . . . 1 . . . Average Slot Usage (%) 91 | . 100 100 91 93 97 91 80 100 86 79 Engine 8 | . 14 14 11 9 9 6 3 . . 3 Treads 15 | . . . . 20 26 22 3 . . 22 Leg 5 | . 28 28 3 . . . 13 23 20 . Wheel 3 | . . . 5 9 . . . . . . Hover 1 | . . . 19 . . . . . . . Device 13 | . 14 14 15 4 12 23 20 23 20 15 Storage 9 | . 14 14 11 11 9 7 7 7 6 4 Processor 4 | . . . . 7 1 7 7 7 6 6 Protection 4 | . . . 1 9 11 . . . . . Energy Gun 7 | . 24 14 11 1 . 11 12 15 13 8 Energy Cannon 8 | . . . . 9 25 2 3 7 6 4 Ballistic Gun 2 | . . . . 7 . . . . . . Launcher 2 | . 3 14 11 1 . . . . . . Slashing Weapon 1 | . . . . . . 7 1 . . . Naked Turns . | . . . . . . . . . . . Heaviest Build 42 | 14 16 16 21 31 39 40 42 34 34 39 Greatest Support 104 | 20 20 20 30 60 60 60 60 35 35 104 Greatest Overweight (x) 9 | . . . 5 3 . 1 9 . . 6 Average Overweight (x) . | . . . . . . . . . . . Largest Inventory Capacity 25 | 8 25 8 8 10 10 10 10 10 10 10 Average Capacity 9 | 8 8 8 8 8 10 10 10 10 10 8 Most Carried 10 | 8 8 8 8 10 10 10 10 4 5 7 Average Carried 7 | 6 7 8 6 7 9 9 5 4 4 5 Final Capacity 10 | 8 8 8 8 10 10 10 10 10 10 5 Final Carried 10 | 8 8 8 5 10 9 10 4 4 5 5 Class Distribution -------------------- 57% | Mutant 15% | Tank 15% | Gladiator 6% | Gunner 4% | Skirmisher Dominant Class ---------------- Mutant | -10/Materials Mutant | -10/Mines Mutant | -9/Materials Mutant | -9/Storage Tank | -8/Materials Gladiator | -7/Factory Mutant | -7/Lower Caves Gunner | -7/Lower Caves Skirmisher | -6/Factory Skirmisher | -6/DSF Resources | -11 -10 -10 -9 -9 -8 -7 -7 -7 -6 -6 ----------- Run | Jun Mat Min Mat Sto Mat Fac Low Low Fac DSF Matter Collected 1593 | 210 . 14 93 873 77 95 146 . . 85 Remotely . | . . . . . . . . . . . Salvage Created 2826 | 111 9 49 7 1121 618 294 382 . . 235 Parts 165 | 5 1 6 4 74 35 11 17 . . 12 Haulers Intercepted 7 | . . . . 5 1 1 . . . . Recyclers Shooed 1 | . . . . . 1 . . . . . Parts Field Recycled . | . . . . . . . . . . . Retrieved Matter . | . . . . . . . . . . . Parts Self-Destructed 14 | . . . . . . . 14 . . . Prevented 3 | . . . . . . . 3 . . . Kills | -11 -10 -10 -9 -9 -8 -7 -7 -7 -6 -6 ------- Run | Jun Mat Min Mat Sto Mat Fac Low Low Fac DSF Combat Hostiles Destroyed 53 | . 3 . 2 25 9 2 9 . . 3 Melee 2 | . . . . . . 1 1 . . . Guns 20 | . . . . 12 . 1 6 . . 1 Cannons 13 | . . . . 4 8 . . . . 1 AOE 16 | . 3 . 2 9 . . 2 . . . Classes Destroyed 15 | 2 1 . . 8 2 1 . . . 1 Worker 4 | . . . . 2 2 . . . . . Builder 4 | . . . . 3 1 . . . . . Tunneler 4 | 1 . 3 . . . . . . . . Hauler 7 | . . . . 5 1 1 . . . . Recycler 3 | 1 . . . . 1 1 . . . . Watcher 2 | . . . . . 1 1 . . . . Swarmer 15 | . 3 . 2 6 . . 4 . . . Grunt 17 | . . . . 8 5 . 4 . . . Brawler 1 | . . . . 1 . . . . . . Duelist 2 | . . . . 1 . . 1 . . . Protector 1 | . . . . 1 . . . . . . Sentry 12 | . . . . 8 3 1 . . . . Specialist 3 | . . . . . . . . . . 3 Hunter 1 | . . . . . 1 . . . . . Programmer 1 | . . . . . . 1 . . . . Thug 1 | . . . . 1 . . . . . . Best Kill Streak 9 | 2 3 1 2 9 2 3 2 . . 2 Combat Bots Only 8 | . 3 . 2 8 2 1 2 . . 2 Max Kills in Single Turn 4 | 1 2 1 2 4 2 1 1 . . 1 Gunslinging 1 | . . . . 1 . . . . . . Exploded 3 | . 2 . 2 3 . . 1 . . . Melee 1 | . . . . . . 1 1 . . . Uniques/NPCs Destroyed . | . . . . . . . . . . . Combat | -11 -10 -10 -9 -9 -8 -7 -7 -7 -6 -6 -------- Run | Jun Mat Min Mat Sto Mat Fac Low Low Fac DSF Damage Taken 5882 | . 91 . 409 1317 517 279 1339 13 . 1917 Core 1014 | . 6 . 117 237 10 11 353 . . 280 Absorbed by Shields 151 | . . . . . . 20 131 . . . Redirected to Shielding 52 | . . . . . 52 . . . . . Core Remaining (%) 70 | 100 . 97 . 11 98 . . 48 . . Volleys Fired 200 | 3 3 11 3 110 25 11 24 . . 10 Largest 3 | 2 1 1 1 2 3 2 2 . . 3 Hottest 204 | 90 30 50 30 136 204 140 140 . . 178 Shots Fired 367 | 6 3 11 3 179 75 22 42 . . 26 Gun 230 | 6 . 11 . 143 . 21 33 . . 16 Cannon 115 | . . . . 23 75 1 6 . . 10 Launcher 22 | . 3 . 3 13 . . 3 . . . Special . | . . . . . . . . . . . Kinetic 96 | . . . . 96 . . . . . . Thermal 206 | 6 . 11 . 51 75 21 32 . . 10 Explosive 19 | . 3 . 3 13 . . . . . . Electromagnetic 46 | . . . . 19 . 1 10 . . 16 Robot Hit Streak 19 | 3 3 2 . 19 16 12 10 . . 9 Robot Miss Streak 5 | 1 2 3 . 5 3 2 1 . . 1 Penetration Max . | . . . . . . . . . . . Secondary Targets 3 | . . . . 3 . . . . . . Max Gunslinging Chain 1 | . . . . 1 . . . . . . Shots Hit Robots 227 | 5 1 6 . 85 52 19 37 . . 22 Core Hits 119 | 3 3 3 2 54 21 7 18 . . 8 Critical Kills 2 | . . . . 1 . . . . . 1 Critical Parts Destroyed 1 | . . . . 1 . . . . . . Critical Strikes 14 | . . 2 . 2 . 2 7 . . 1 Burn 9 | . . 2 . . . 2 5 . . . Meltdown 1 | . . . . . . . . . . 1 Destroy 2 | . . . . 2 . . . . . . Sever 2 | . . . . . . . 2 . . . Melee Attacks 19 | . . . . 5 2 4 6 . . 2 Impact . | . . . . . . . . . . . Slashing 12 | . . . . . 2 4 6 . . . Piercing 2 | . . . . . . . . . . 2 Sneak Attacks 6 | . . . . 3 2 1 . . . . Combat Hostiles . | . . . . . . . . . . . Follow-up Attacks . | . . . . . . . . . . . Damage Inflicted 6572 | 59 238 88 92 2715 1367 584 1078 . . 351 Guns 2187 | 59 . 88 . 910 . 347 573 . . 210 Cannons 1675 | . . . . 240 1163 25 106 . . 141 Explosions 2028 | . 238 . 92 1544 . . 154 . . . Melee 648 | . . . . . 197 207 244 . . . Ramming 34 | . . . . 21 7 5 1 . . . Kinetic 863 | . . . . 863 . . . . . . Thermal 2662 | 59 . 88 . 240 1163 372 599 . . 141 Explosive 1874 | . 238 . 92 1544 . . . . . . Electromagnetic 491 | . . . . 47 . . 234 . . 210 Impact . | . . . . . . . . . . . Slashing 648 | . . . . . 197 207 244 . . . Piercing . | . . . . . . . . . . . Highest Corruption 15 | . . . 13 15 2 . . . . 5 Average Corruption 9 | . . . 13 13 1 . . . . 3 Corruption Purged . | . . . . . . . . . . . Corruption Blocked . | . . . . . . . . . . . Effects 70 | . . . 3 58 5 . . . . 4 Message Errors 15 | . . . 1 13 1 . . . . . Matter Fused 15 | . . . 2 11 . . . . . 2 Heat Flow Errors 8 | . . . . 4 3 . . . . 1 Energy Discharges 5 | . . . . 3 1 . . . . 1 Data Loss (minor) 10 | . . . . 10 . . . . . . Data Loss (major) 3 | . . . . 3 . . . . . . Misfires 6 | . . . . 6 . . . . . . Misdirections 2 | . . . . 2 . . . . . . Weapon Failures 6 | . . . . 6 . . . . . . Overload Shots . | . . . . . . . . . . . Overflow Damage 140 | . 50 . . 49 37 . 4 . . . Projectiles 41 | . . . . . 37 . 4 . . . Explosions 99 | . 50 . . 49 . . . . . . Melee . | . . . . . . . . . . . Knockbacks . | . . . . . . . . . . . Impact . | . . . . . . . . . . . Kinetic . | . . . . . . . . . . . Secondary . | . . . . . . . . . . . Self-Inflicted Damage 283 | . 40 . . 232 . . 11 . . . Shots 10 | . 1 . . 7 . . 2 . . . Rammed 11 | . . . . 5 4 1 1 . . . Targets Rammed 12 | . . . . 6 4 1 1 . . . Kicked . | . . . . . . . . . . . Crushed 1 | . . . . 1 . . . . . . Highest Temperature 448 | 60 . 70 . 342 448 . 9 . . 199 Average Temperature 100 | 27 . 27 . 79 158 . 6 . . 86 Received Heat Transfer 939 | . . . 9 285 234 48 354 9 . . Effects 6 | . . . . 2 4 . . . . . Energy Bleed 4 | . . . . 1 3 . . . . . Matter Decay 1 | . . . . 1 . . . . . . Damage (minor) 1 | . . . . . 1 . . . . . Siege Activations . | . . . . . . . . . . . Robots Corrupted . | . . . . . . . . . . . Combat Hostiles . | . . . . . . . . . . . Parts Fried 1 | . . . . . . . 1 . . . Impact Corruptions . | . . . . . . . . . . . Robots Melted 2 | . . . . . 1 . . . . 1 Combat Hostiles 2 | . . . . . 1 . . . . 1 Parts Melted 13 | . . 1 . 1 5 3 1 . . 2 Heat Transferred 5328 | 161 . 407 . 418 1998 740 1345 . . 259 Parts Sabotaged . | . . . . . . . . . . . Parts Stolen . | . . . . . . . . . . . Parts Stripped . | . . . . . . . . . . . Power Chain Reactions 1 | . . . . . . . 1 . . . Missiles Intercepted . | . . . . . . . . . . . Alert | -11 -10 -10 -9 -9 -8 -7 -7 -7 -6 -6 ------- Run | Jun Mat Min Mat Sto Mat Fac Low Low Fac DSF Peak Influence 441 | 10 115 59 96 441 314 67 . . . 80 Initial 185 | . 6 44 22 29 185 20 . . . . Average 127 | 7 38 53 34 247 145 31 . . . 15 Maximum Alert Level 2 | . . . . 2 1 . . . . . Low Security (%) 70 | 100 100 100 100 25 77 100 . . 100 100 Level 1 28 | . . . . 70 22 . . . . . Level 2 1 | . . . . 3 . . . . . . Level 3 . | . . . . . . . . . . . Level 4 . | . . . . . . . . . . . Level 5 . | . . . . . . . . . . . High Security . | . . . . . . . . . . . Max Security . | . . . . . . . . . . . Squads Dispatched 9 | . . . . 4 2 2 . . . 1 Investigation 1 | . . . . . 1 . . . . . Extermination 1 | . . . . . . 1 . . . . Reinforcement 4 | . . . . 1 1 1 . . . 1 Assault 2 | . . . . 2 . . . . . . Garrison 1 | . . . . 1 . . . . . . Intercept . | . . . . . . . . . . . Searches Triggered . | . . . . . . . . . . . Construction Impeded . | . . . . . . . . . . . Haulers Reinforced 1 | . . . . . . 1 . . . . Active Scanning Responses . | . . . . . . . . . . . Cargo Convoy Interrupts . | . . . . . . . . . . . Stealth | -11 -10 -10 -9 -9 -8 -7 -7 -7 -6 -6 --------- Run | Jun Mat Min Mat Sto Mat Fac Low Low Fac DSF Distress Signals 6 | . . . . 2 4 . . . . . Communications Jammed 9 | . . . . . . 9 . . . . Distress Signals 9 | . . . . . . 9 . . . . Times Spotted 88 | . 3 . 4 34 15 3 19 4 . 6 Peak Tracking Total 7 | . 3 . 2 7 4 1 4 4 . 4 Tactical Retreats 10 | . . . . . 1 . 7 . . 2 Traps | -11 -10 -10 -9 -9 -8 -7 -7 -7 -6 -6 ------- Run | Jun Mat Min Mat Sto Mat Fac Low Low Fac DSF Traps Triggered 9 | . . . . 3 3 3 . . . . Indirectly . | . . . . . . . . . . . Trap Hack Attempts . | . . . . . . . . . . . Triggered . | . . . . . . . . . . . Disarmed . | . . . . . . . . . . . Reprogrammed . | . . . . . . . . . . . Reused . | . . . . . . . . . . . Traps Extracted . | . . . . . . . . . . . Installed . | . . . . . . . . . . . Triggered 1 | . . . . . . . 1 . . . Machines | -11 -10 -10 -9 -9 -8 -7 -7 -7 -6 -6 ---------- Run | Jun Mat Min Mat Sto Mat Fac Low Low Fac DSF Machines Disabled 7 | . 1 . . 4 2 . . . . . Max in Single Turn 1 | . 1 . . 1 1 . . . . . Machines Repaired . | . . . . . . . . . . . Machines Sabotaged . | . . . . . . . . . . . Overloaded Fab Kills . | . . . . . . . . . . . Hacking | -11 -10 -10 -9 -9 -8 -7 -7 -7 -6 -6 --------- Run | Jun Mat Min Mat Sto Mat Fac Low Low Fac DSF Machines Accessed 12 | . 2 . 2 4 3 . . . 1 . Terminals 10 | . 2 . 1 4 2 . . . 1 . Fabricators . | . . . . . . . . . . . Repair Stations . | . . . . . . . . . . . Recycling Units 1 | . . . 1 . . . . . . . Scanalyzers 1 | . . . . . 1 . . . . . Garrison Access . | . . . . . . . . . . . Total Hacks 21 | . 3 . 4 7 6 . . . 1 . Successful 13 | . 2 . 2 3 5 . . . 1 . Failed 8 | . 1 . 2 4 1 . . . . . Catastrophic . | . . . . . . . . . . . Database Lockouts . | . . . . . . . . . . . Manual 3 | . . . . 1 2 . . . . . Terminals 17 | . 3 . 2 7 4 . . . 1 . Fabricators . | . . . . . . . . . . . Repair Stations . | . . . . . . . . . . . Recycling Units 2 | . . . 2 . . . . . . . Scanalyzers 2 | . . . . . 2 . . . . . Garrison Access . | . . . . . . . . . . . Terminal Hacks 10 | . 2 . 1 3 3 . . . 1 . Robot Analysis 1 | . . . . . 1 . . . . . Open DSF 1 | . . . . . . . . . 1 . Emergency Access Points 1 | . . . . 1 . . . . . . Alert Level 2 | . . . 1 . 1 . . . . . Unreport Threat 1 | . . . . . 1 . . . . . Dispatch Records 1 | . 1 . . . . . . . . . Maintenance Status 1 | . . . . 1 . . . . . . Zone Layout 2 | . 1 . . 1 . . . . . . Fabricator Hacks . | . . . . . . . . . . . Repair Station Hacks . | . . . . . . . . . . . Recycling Unit Hacks 1 | . . . 1 . . . . . . . Report Inventory 1 | . . . 1 . . . . . . . Scanalyzer 2 | . . . . . 2 . . . . . Insert Component 1 | . . . . . 1 . . . . . Analyze 1 | . . . . . 1 . . . . . Garrison Access Hacks . | . . . . . . . . . . . Unauthorized Hacks . | . . . . . . . . . . . Terminals . | . . . . . . . . . . . Fabricators . | . . . . . . . . . . . Repair Stations . | . . . . . . . . . . . Recycling Units . | . . . . . . . . . . . Scanalyzers . | . . . . . . . . . . . Garrison Access . | . . . . . . . . . . . Data Cores Recovered . | . . . . . . . . . . . Used . | . . . . . . . . . . . Hacking Detections 9 | . 1 . 1 3 3 . . . 1 . Full Trace Events . | . . . . . . . . . . . Feedback Events . | . . . . . . . . . . . Feedback Blocked . | . . . . . . . . . . . Robot Schematics Acquired . | . . . . . . . . . . . Robots Built . | . . . . . . . . . . . Authchips . | . . . . . . . . . . . Time . | . . . . . . . . . . . Total Robot Build Rating . | . . . . . . . . . . . Part Schematics Acquired 1 | . . . . . 1 . . . . . Parts Built . | . . . . . . . . . . . Authchips . | . . . . . . . . . . . Time . | . . . . . . . . . . . Total Part Build Rating . | . . . . . . . . . . . Parts Repaired . | . . . . . . . . . . . Time . | . . . . . . . . . . . Parts Recycled . | . . . . . . . . . . . Recycled Matter . | . . . . . . . . . . . Retrieved Matter . | . . . . . . . . . . . Retrieved Components . | . . . . . . . . . . . Parts Scanalyzed 1 | . . . . . 1 . . . . . Part Schematics Acquired 1 | . . . . . 1 . . . . . Parts Damaged . | . . . . . . . . . . . Bothacking | -11 -10 -10 -9 -9 -8 -7 -7 -7 -6 -6 ------------ Run | Jun Mat Min Mat Sto Mat Fac Low Low Fac DSF Used RIF Installer . | . . . . . . . . . . . Robots Hacked 2 | . . . . 2 . . . . . . Non-combat 1 | . . . . 1 . . . . . . Combat 1 | . . . . 1 . . . . . . Robot Hacks Applied 3 | . . . . 3 . . . . . . parse_system 2 | . . . . 2 . . . . . . no_distress 1 | . . . . 1 . . . . . . Relay Couplers Released . | . . . . . . . . . . . Fabnet Peak Effective % . | . . . . . . . . . . . Robots Rewired . | . . . . . . . . . . . Allies Hacked . | . . . . . . . . . . . Hacks Repelled . | . . . . . . . . . . . Allies | -11 -10 -10 -9 -9 -8 -7 -7 -7 -6 -6 -------- Run | Jun Mat Min Mat Sto Mat Fac Low Low Fac DSF Total Allies 2 | . . . . 2 . . . . . . Largest Group 2 | . . . . 2 . . . . . . Highest-Rated Group 62 | . . . . 62 . . . . . . Highest-Rated Ally 31 | . . . . 31 . . . . . . Total Orders . | . . . . . . . . . . . Ally Attacks 12 | . . . . 12 . . . . . . Total Damage 257 | . . . . 257 . . . . . . Kills 2 | . . . . 2 . . . . . . Allies Corrupted . | . . . . . . . . . . . Allies Melted . | . . . . . . . . . . . Intel | -11 -10 -10 -9 -9 -8 -7 -7 -7 -6 -6 ------- Run | Jun Mat Min Mat Sto Mat Fac Low Low Fac DSF Robot Analysis Total 1 | . . . . . 1 . . . . . Derelict Logs Recovered 2 | . . 1 . . . . 1 . . . Drone Launches . | . . . . . . . . . . . Drone Recoveries . | . . . . . . . . . . . Exploration | -11 -10 -10 -9 -9 -8 -7 -7 -7 -6 -6 ------------- Run | Jun Mat Min Mat Sto Mat Fac Low Low Fac DSF Turns Passed 5087 | 38 216 202 337 1391 940 786 827 14 112 224 Spaces Moved 2938 | 22 157 149 429 797 386 403 444 12 57 82 Core 28 | . . . 2 7 . . 14 . . 5 Treads 1316 | . . . . 437 386 403 23 . . 67 Legs 862 | 22 157 149 48 . . . 407 12 57 10 Wheels 407 | . . . 54 353 . . . . . . Hover 325 | . . . 325 . . . . . . . Flight . | . . . . . . . . . . . Fastest Speed 52 | 120 120 120 52 80 160 160 120 120 120 120 Average Speed 127 | 120 120 120 66 126 160 160 135 120 120 147 Slowest Speed 500 | 120 120 120 300 200 160 240 500 120 120 350 Overloaded Moves . | . . . . . . . . . . . Propulsion Burnouts . | . . . . . . . . . . . Robots Hopped . | . . . . . . . . . . . Cave-ins Triggered 1 | . . . 1 . . . . . . . Exploration Rate (%) 26 | 2 27 37 20 75 33 8 45 4 2 39 Regions Visited 10 Branch Regions 4 Pre-discovered Areas . | . . . . . . . . . . . Known Exits Taken 2 | . . . . . . . 1 . 1 . Unknown Exits Taken 8 | 1 1 1 1 1 1 1 . 1 . . Scrap Searched 2 | . . . . . . . 2 . . . Spaces Dug . | . . . . . . . . . . . Terrain Destroyed 120 | . 24 . 23 72 . . 1 . . . Melee . | . . . . . . . . . . . Projectile . | . . . . . . . . . . . AOE 120 | . 24 . 23 72 . . 1 . . . Terrain Rammed . | . . . . . . . . . . . Walls Destroyed . | . . . . . . . . . . . Machines Disabled . | . . . . . . . . . . . Actions | -11 -10 -10 -9 -9 -8 -7 -7 -7 -6 -6 --------- Run | Jun Mat Min Mat Sto Mat Fac Low Low Fac DSF Total 3869 | 27 182 161 475 990 647 508 609 11 100 159 Wait 538 | . 11 . 31 19 208 67 112 . 42 48 Move 2928 | 21 156 148 428 796 385 402 443 11 56 82 Hop . | . . . . . . . . . . . Pick Up 33 | 2 4 1 1 13 6 4 . . . 2 Fast Attach 48 | 1 2 . 5 11 5 8 8 . 1 7 Attach 26 | . . . 3 5 4 3 8 . . 3 Detach 5 | . . . . . 1 1 2 . 1 . Swap 23 | . 2 . 1 14 . 3 1 . . 2 Drop 33 | . 4 1 3 11 7 4 . . . 3 Fire 200 | 3 3 11 3 110 25 11 24 . . 10 Melee 19 | . . . . 5 2 4 6 . . 2 Ram 3 | . . . . 2 . . 1 . . . Kick . | . . . . . . . . . . . Crush 9 | . . . . 4 4 1 . . . . Escape Stasis . | . . . . . . . . . . . Rewire 4 | . . . . . . . 4 . . . Trap . | . . . . . . . . . . . Miscellaneous . | . . . . . . . . . . . Route ------- -11/Junkyard -10/Materials -10/Mines -9/Materials -9/Storage -8/Materials -7/Factory -7/Lower Caves -7/Lower Caves -6/Factory -6/DSF History --------- Turn | Location | Event 1 | -11/Junkyard | Discovered new exit (range 1) 39 | -11/Junkyard | Entered Materials 232 | -10/Materials | Discovered new exit (range 16) 255 | -10/Materials | Entered Mines 258 | -10/Mines | Learned Materials terminal intel 306 | -10/Mines | Build established: Mutant 318 | -10/Mines | Found a damaged Exp. Sensor Array with a note attached 321 | -10/Mines | Found Prototype Device 445 | -10/Mines | Discovered new exit (range 10) 457 | -10/Mines | Entered Materials 457 | -9/Materials | Evolved 2 slots: Propulsion x1, Utility x1 458 | -9/Materials | Loaded intel: 12 terminal locations 548 | -9/Materials | Identified Exp. Sensor Array 721 | -9/Materials | Crushed by falling debris 721 | -9/Materials | System corruption reached 10% 752 | -9/Materials | Lost 4 parts (2n2u) 770 | -9/Materials | Discovered new exit (range 12) 794 | -9/Materials | Entered Storage 1285 | -9/Storage | Core integrity fell below 50% 1340 | -9/Storage | Lost 3 parts (1n2w) 1396 | -9/Storage | Core integrity fell below 20% 2100 | -9/Storage | Met a pair of Derelict thieves 2122 | -9/Storage | Garrison activated, responded to threat 2166 | -9/Storage | Destroyed 8 combat bots 2173 | -9/Storage | Discovered new exit (range 7) 2185 | -9/Storage | Entered Materials 2185 | -8/Materials | Evolved 2 slots: Utility x1, Weapon x1 2485 | -8/Materials | Build established: Tank 3102 | -8/Materials | Discovered new exit (range 12) 3125 | -8/Materials | Entered Factory 3125 | -7/Factory | Evolved 2 slots: Utility x1, Weapon x1 3308 | -7/Factory | Build established: Gladiator 3899 | -7/Factory | Discovered new exit (range 7) 3911 | -7/Factory | Entered Lower Caves 4097 | -7/Lower Caves | Lost 8 parts (1p3n1u3w) 4338 | -7/Lower Caves | Core integrity fell below 50% 4372 | -7/Lower Caves | Build established: Mutant 4648 | -7/Lower Caves | Encountered a Warlord checkpoint 4668 | -7/Lower Caves | Identified exit to Lower Caves 4738 | -7/Lower Caves | Entered another Lower Caves area 4738 | -7/Lower Caves | Discovered new exit (range 11) 4752 | -7/Lower Caves | Entered Factory 4752 | -6/Factory | Evolved 2 slots: Power x1, Propulsion x1 4862 | -6/Factory | Identified exit to DSF 4864 | -6/Factory | Entered DSF 4913 | -6/DSF | Additional patrols routed to DSF 5082 | -6/DSF | Lost 14 parts (2p4n4u4w) 5088 | -6/DSF | Self-destructed Last Messages --------------- 05035_ Mak. Spear destroyed. 05035_ Med. Storage Unit destroyed. 05035_ Critical hit (Blast). 05035_ Knocked back. 05038_ Penetrated by Slug. 05038_ Adv. Terrain Scanner destroyed. 05038_ Penetrated by Slug. 05042_ Slug penetrates Wall. 05045_ Penetrated by Slug. 05047_ Acquired Imp. Medium Treads. 05048_ Penetrated by Slug. 05048_ Mic. Nuclear Core destroyed. 05050_ Acquired Imp. Medium Treads. 05051_ Slug penetrates Wall. 05051_ Penetrated by Slug. 05051_ Imp. Heat Sink destroyed. 05052_ System corrupted: Matter fused (-5). 05055_ Penetrated by Slug. 05058_ Slug penetrates Wall. 05061_ Penetrated by Slug. Map ----- +----------------------------------------------------+ | ???????????????????????????????????? | | ???????????????????????????????????? | | ???????????????????????????????????? | | ???????????????????????????????????? | | ???????????????????????????????????? | | ???????????????????????????????????? | | ???????????????????????????????????? | | ???????????????????????????????????? | | ???????????????????????????????????? | | ???????????????????????????????????? | | ???????????????????????????????????? | | ???????????????????????????????????? | | ?????????????????#?????????????????? | | ?????????????????????? ????????????? | | ???????????????????#???????????????? | | ??????#####??????#?#???????????????? | | ??????#]] ??? ?#???#??????????????? | | ??????#]] #??????????? ?????????? | | ??????#[[ ?? ????? ???? ??? | | ??????#[[ ??????? ?? ??? ????? | | ??????#[[ ?? ???? ?? ????????? | | ??????# #?????? ?? ????????? | | ??????? C#??????????# #???? ???? | | ???????## ###????????# ####?????? | | ???????#= ==#????????! ]]#??#???? | | ???????#= @=#????????! ]]??#????? | | ???????#= ==#?????#? ! ]?????#??? | | ???????## ###???#??### ###??????? | | ???????# ==##??#??#== ==#?#????? | | ???????# h==##??????== ==##????## | | ???????## ##########?= ==#????#?? | | ????##### ###==# ##"" #????????# | | ??#?###""% H##==#!= ""[%! ###??????? | | ??##""%%%%% === % [%%! #??#???? | | ???#"##""% ! =% %!==! #??????? | | ???#??#"""""##= # "%[* ==#??????# | | ??????#"""""########"[[ %==##?????? | | ??????####"##??#??# ###%"####??????? | | ?????#???#"##?##?# #?## #?##?#????? | | ????????#""#?????####??####??#??##?? | | ?????????##???????#?????##??#??????? | | ?????#???#??#??##?##???????????????? | | ?#????#???????#?#??????????????#???# | | ?????#????????????#?#??????????????? | | ???????#??????##???#???#??##?#?????# | | | | | | | | | | | +----------------------------------------------------+ Best States ------------- Heat Dissipation 73 Coolant Potential 50 Energy Generation 23 Energy Capacity 300 Matter Stores 300 Matter Capacity 300 Sight Range 16 Robot Scan Range 20 Terrain Scan Range 20 Terrain Scan Density 10 Jamming Range 12 Base Temperature (-) 100 Armor Coverage 300 Propulsion Shielding 33 Evasion (%) 55 Targeting Accuracy 6 Melee Accuracy 6 Recoil Reduction 4 Item Schematics ----------------- Cryofiber Web | -8/Materials | Scanalyzed Robot Schematics ------------------ None Fabricated ------------ Nothing Alien Tech Used ----------------- None Achievements -------------- None Challenges ------------ None Game ------ Seed TargetSiegeDoomcannon Manual? 0 Play Time 01:03:18 Cumulative 26.1 hours Start 2023.09.16 @ 07:30:34 End 2023.11.11 @ 17:31:15 Sessions 15 Manual Loads 0 Difficulty Rogue Special Mode None Game No. 37 Rogue 36 Adventurer 1 Explorer 0 Win Type - Total 0 Types 0/0/0/0/0/0/0/0/0 Lore% 10 Gallery% 30 Achievement% 22 Wizard Run 0 Options --------- ASCII 0 Keyboard 0 Movement Arrows Keybinds 0 Fullscreen 1 Font 24/Smallcaps Map View 76x50 Tactical HUD 1 Map Filters NONE Filters NONE Steam 1 RUN: 544c06c1-d190-4a3d-b2b7-262d2cfe8f29